Cogmind - Beta 12 @@@ ROGUE MODE // 2023.03.26 @ 19:55:05 Player: Finestep Result: Destroyed by G-50 Soldier with Heavy Laser Performance ------------- Evolutions (4) 2000 Regions Visited (11) 2200 Robots Destroyed (192) 960 Value Destroyed (5138) 5138 Prototype IDs (39) 780 Alien Tech Used (0) 0 Bonus (1105) 1105 TOTAL SCORE: 12183 Bonus ------- High Alert Combat Kills 805 Aligned with FarCom 300 Cogmind --------- Core Integrity 0/850 Matter 175/300 Energy 24/100 System Corruption 18% Temperature Cool (30) Movement Walking (190) Ox1 Location -6/Factory Parts ------- > --- POWER (1) -------- (None) > --- PROPULSION (4) --- Armored Leg Armored Leg > --- UTILITY (8) ------ Large Storage Unit Advanced Visual Processing Unit Improved Signal Interpreter Advanced Terrain Scan Processor Modified TNC Targeting Computer Target Analyzer > --- WEAPON (2) ------- Cooled Particle Cannon Heavy Rocket Launcher > --- INVENTORY (15) --- Micro Antimatter Reactor Large Matter Pod (150) Large Matter Pod (150) Proton Cannon Cooled Particle Cannon Cooled Plasma Cannon Cooled Plasma Cannon Heavy Machine Gun Improved Heavy Machine Gun Long-range Missile Launcher Precision Rocket Launcher Makeshift Axe Peak State ------------ > --- POWER ------------ Micro Antimatter Reactor > --- PROPULSION ------- Flexi-carbon Leg Flexi-carbon Leg Flexi-carbon Leg Armored Leg > --- UTILITY ---------- Large Storage Unit Advanced Visual Processing Unit Advanced Sensor Array Improved Signal Interpreter Advanced Terrain Scan Processor Modified TNC Experimental Targeting Computer Layered Medium Armor Plating > --- WEAPON ----------- Coil Gun Hypervelocity Gauss Rifle > --- INVENTORY -------- Micro Antimatter Reactor Improved Carbon-fiber Leg Phase Shifter Precision Shock Rifle Precision Shock Rifle Precision Shock Rifle Cooled Particle Cannon Cooled Particle Cannon Cooled Plasma Cannon Cooled Plasma Cannon Improved Heavy Machine Gun Long-range Missile Launcher Precision Rocket Launcher Makeshift Axe [Rating: 78] Favorites ----------- Power Ion Engine Engine Ion Engine Power Core Nuclear Core Reactor Micro Antimatter Reactor Propulsion Light Treads Treads Light Treads Leg Carbon-fiber Leg Hover Unit Combat Airjet Utility Modified TNC Device Heat Sink Storage Medium Storage Unit Processor Modified TNC Hackware Hacking Suite Protection Hardened Medium Armor Plating Weapon Assault Rifle Energy Gun Lightning Gun Energy Cannon Cooled Particle Cannon Ballistic Gun Assault Rifle Launcher Long-range Missile Launcher Impact Weapon Power Maul Slashing Weapon Makeshift Axe Build | -11 -10 -10 -9 -9 -9 -8 -8 -7 -7 -7 -6 ------- Run | Jun Mat Min Mat Min Exi Min Mat Fac Low Low Fac Slots Evolved 8 | . . . 2 . . . 2 2 . . 2 Power . | . . . . . . . . . . . . Propulsion 2 | . . . 1 . . . . . . . 1 Utility 6 | . . . 1 . . . 2 2 . . 1 Weapon . | . . . . . . . . . . . . Parts Attached 197 | 7 7 4 30 . 2 1 31 18 3 . 94 Power 13 | 1 1 . 2 . . . 2 1 1 . 5 Engine 8 | 1 1 . 2 . . . 1 . 1 . 2 Core 2 | . . . . . . . 1 1 . . . Reactor 3 | . . . . . . . . . . . 3 Propulsion 42 | 2 . . 9 . . . 10 3 . . 18 Treads 15 | 2 . . 6 . . . 4 . . . 3 Leg 21 | . . . 3 . . . 5 . . . 13 Wheel . | . . . . . . . . . . . . Hover 6 | . . . . . . . 1 3 . . 2 Flight . | . . . . . . . . . . . . Utility 59 | 2 2 2 11 . 1 1 10 9 . . 21 Device 17 | 1 . . . . . . 3 3 . . 10 Storage 5 | 1 . . 1 . . . 2 . . . 1 Processor 11 | . . . 1 . 1 . . 1 . . 8 Hackware 3 | . . . 1 . . . . 2 . . . Protection 23 | . 2 2 8 . . 1 5 3 . . 2 Artifact . | . . . . . . . . . . . . Weapon 83 | 2 4 2 8 . 1 . 9 5 2 . 50 Energy Gun 17 | . . . . . 1 . 3 3 . . 10 Energy Cannon 11 | . . . . . . . . 2 . . 9 Ballistic Gun 39 | 2 3 2 7 . . . 5 . . . 20 Ballistic Cannon . | . . . . . . . . . . . . Launcher 6 | . 1 . . . . . . . . . 5 Special Weapon . | . . . . . . . . . . . . Impact Weapon 1 | . . . . . . . . . 1 . . Slashing Weapon 9 | . . . 1 . . . 1 . 1 . 6 Piercing Weapon . | . . . . . . . . . . . . Special Melee Weapon . | . . . . . . . . . . . . Unidentified Prototypes 14 | . . . 2 . . . 3 1 . . 8 Corrupted Parts 1 | . . . . . . . . . . . 1 System Corruption 1 | . . . . . . . . . . . 1 Parts Lost 43 | . 1 . 3 . . . 11 . 1 2 25 Power 6 | . 1 . . . . . 2 . 1 . 2 Propulsion 16 | . . . 3 . . . 5 . . . 8 Utility 13 | . . . . . . . 3 . . 2 8 Weapon 8 | . . . . . . . 1 . . . 7 Highest Loss Streak 7 | . 1 . 1 . . . 3 . 1 2 7 To Critical Strikes . | . . . . . . . . . . . . Average Slot Usage (%) 96 | . 99 100 97 100 94 88 93 97 99 100 95 Engine 7 | . 13 14 10 11 11 11 6 3 . 7 2 Core 1 | . . . . . . . 2 3 6 . . Treads 11 | . 28 28 26 . . . 1 3 . . 4 Leg 10 | . . . 5 33 33 33 24 . . . 14 Hover 4 | . . . . . . . . 19 23 23 4 Device 4 | . 1 . . . . . 6 14 7 7 6 Storage 9 | . 14 14 11 11 11 11 9 7 7 7 6 Processor 13 | . . . . 11 11 11 9 13 15 15 31 Hackware 1 | . . . . . . . . 4 7 7 3 Protection 11 | . 12 14 19 11 11 11 16 9 15 15 2 Energy Gun 3 | . . . . . 5 11 5 11 13 . 1 Ballistic Gun 13 | . 27 28 21 22 11 . 11 2 . . 7 Naked Turns . | . . . . . . . . . . . . Heaviest Build 52 | 13 17 17 34 27 29 34 48 39 34 30 52 Greatest Support 76 | 40 40 40 60 45 45 45 60 60 36 36 76 Greatest Overweight (x) 2 | . . . 1 . . . 1 1 . . 2 Average Overweight (x) . | . . . . . . . . . . . . Largest Inventory Capacity 15 | 8 8 8 10 10 10 10 15 10 10 10 15 Average Capacity 10 | 7 8 8 8 10 10 10 10 10 10 10 13 Most Carried 15 | 5 8 8 10 10 10 10 10 10 10 10 15 Average Carried 9 | 2 7 7 8 10 9 10 9 9 9 10 12 Final Capacity 15 | 8 8 8 10 10 10 10 10 10 10 10 15 Final Carried 12 | 5 8 8 10 10 10 10 10 10 10 10 12 Class Distribution -------------------- 46% | Mutant 36% | Scavenger-Mutant 11% | Scavenger-Skirmisher 3% | Scavenger-Assassin Dominant Class ---------------- Mutant | -10/Materials Mutant | -10/Mines Scavenger-Mutant | -9/Materials Mutant | -9/Mines Mutant | -9/Exiles Mutant | -8/Mines Mutant | -8/Materials Scavenger-Mutant | -7/Factory Scavenger-Mutant | -7/Lower Caves Scavenger-Mutant | -7/Lower Caves Scavenger-Skirmisher | -6/Factory Resources | -11 -10 -10 -9 -9 -9 -8 -8 -7 -7 -7 -6 ----------- Run | Jun Mat Min Mat Min Exi Min Mat Fac Low Low Fac Matter Collected 5675 | 244 583 256 849 . . 30 1088 241 29 . 2355 Remotely . | . . . . . . . . . . . . Salvage Created 7991 | 146 796 199 1294 . . . 1825 398 50 . 3283 Parts 466 | 13 52 6 96 . . . 119 21 1 . 158 Haulers Intercepted 15 | . 2 . 4 . . . 5 1 . . 3 Recyclers Shooed 12 | . 2 . 3 . . . 2 . . . 5 Parts Field Recycled . | . . . . . . . . . . . . Retrieved Matter . | . . . . . . . . . . . . Parts Self-Destructed 3 | . . . . . . . . . 3 . . Prevented . | . . . . . . . . . . . . Kills | -11 -10 -10 -9 -9 -9 -8 -8 -7 -7 -7 -6 ------- Run | Jun Mat Min Mat Min Exi Min Mat Fac Low Low Fac Combat Hostiles Destroyed 126 | . 14 10 21 . . . 31 3 1 . 46 Melee 2 | . . . . . . . . . 1 . 1 Guns 106 | . 12 10 21 . . . 31 1 . . 31 Cannons 3 | . . . . . . . . . . . 3 AOE 11 | . 2 . . . . . . . . . 9 Classes Destroyed 19 | 3 5 1 2 . . . 4 1 1 . 2 Worker 23 | 2 2 2 2 . . . 3 3 . . 9 Builder 7 | . 1 . 1 . . . 3 . . . 2 Tunneler 5 | 2 . 1 . . . . 1 . . . 1 Hauler 15 | . 2 . 4 . . . 5 1 . . 3 Recycler 12 | 1 2 . 3 . . . 2 1 . . 3 Operator 1 | . . . 1 . . . . . . . . Watcher 13 | . 1 . 4 . . . 4 . . . 4 Swarmer 35 | . 3 . 9 . . . 11 . . . 12 Saboteur 1 | . . . . . . . . . . . 1 Grunt 39 | . 11 . 6 . . . 7 . . . 15 Brawler 1 | . . . . . . . 1 . . . . Duelist 4 | . . . . . . . 1 . . . 3 Sentry 20 | . . . 6 . . . 8 2 . . 4 Demolisher 1 | . . . . . . . . 1 . . . Specialist 2 | . . . . . . . 2 . . . . Hunter 6 | . . . . . . . . . . . 6 Programmer 6 | . . . . . . . . . 1 . 5 Heavy 1 | . . . . . . . 1 . . . . Assembled 10 | . . 10 . . . . . . . . . Best Kill Streak 13 | 3 5 3 7 . . . 13 2 1 . 9 Combat Bots Only 8 | . 4 3 3 . . . 5 1 1 . 8 Max Kills in Single Turn 4 | 1 1 1 2 . . . 2 1 1 . 4 Gunslinging 1 | . . . 1 . . . 1 . . . . Exploded 4 | . 1 . . . . . . . . . 4 Melee 1 | . . . . . . . . . 1 . 1 Uniques/NPCs Destroyed . | . . . . . . . . . . . . Combat | -11 -10 -10 -9 -9 -9 -8 -8 -7 -7 -7 -6 -------- Run | Jun Mat Min Mat Min Exi Min Mat Fac Low Low Fac Damage Taken 11073 | . 470 261 1023 . . . 3134 280 371 137 5397 Core 1696 | . 74 27 101 . . . 517 75 30 5 867 Absorbed by Shields . | . . . . . . . . . . . . Redirected to Shielding 50 | . . . . . . . . 16 29 5 . Regen/Repaired (Parts) 149 | . . . . . . . . 149 . . . Core Remaining (%) 64 | 100 . 59 . . . 74 6 . . 84 . Volleys Fired 601 | 8 72 36 94 . . . 151 33 9 . 198 Largest 2 | 2 2 2 2 . . . 2 2 2 . 2 Hottest 122 | 40 40 40 46 . . . 122 110 110 . 110 Shots Fired 1187 | 16 141 72 188 . . . 342 62 18 . 348 Gun 1139 | 16 138 72 188 . . . 342 62 18 . 303 Cannon 40 | . . . . . . . . . . . 40 Launcher 8 | . 3 . . . . . . . . . 5 Special . | . . . . . . . . . . . . Kinetic 894 | 16 138 72 188 . . . 212 14 . . 254 Thermal 175 | . . . . . . . 130 10 . . 35 Explosive 8 | . 3 . . . . . . . . . 5 Electromagnetic 110 | . . . . . . . . 38 18 . 54 Robot Hit Streak 27 | 4 8 6 11 . . . 23 7 4 . 27 Robot Miss Streak 8 | 2 4 3 5 . . . 4 8 2 . 5 Penetration Max 1 | . . . . . . . . . . . 1 Secondary Targets 13 | . 1 . 1 . . . 5 1 . . 5 Max Gunslinging Chain 1 | . 1 . 1 . . . 1 1 . . 1 Autonomous 40 | . . . . . . . 40 . . . . Shots Hit Robots 791 | 8 90 42 129 . . . 237 36 14 . 235 Core Hits 324 | 6 39 20 53 . . . 74 9 2 . 121 Critical Kills 21 | . . . . . . . . 1 . . 20 Critical Parts Destroyed 18 | . . . . . . . 2 . . . 16 Critical Strikes 54 | . . . . . . . 9 2 . . 43 Burn 8 | . . . . . . . 7 1 . . . Destroy 40 | . . . . . . . 2 1 . . 37 Corrupt 5 | . . . . . . . . . . . 5 Sever 1 | . . . . . . . . . . . 1 Melee Attacks 31 | . . . 1 . . . 3 . 5 1 21 Impact 2 | . . . . . . . . . 1 . 1 Slashing 29 | . . . 1 . . . 3 . 4 1 20 Piercing . | . . . . . . . . . . . . Sneak Attacks 5 | . . . . . . . . . . . 5 Combat Hostiles 1 | . . . . . . . . . . . 1 Follow-up Attacks 1 | . . . . . . . . . 1 . . Damage Inflicted 15271 | 101 1221 529 1942 . . 41 4254 702 246 . 6235 Guns 12483 | 101 1130 529 1942 . . . 4254 702 132 . 3693 Cannons 724 | . . . . . . . . . . . 724 Explosions 1261 | . 91 . . . . . . . . . 1170 Melee 762 | . . . . . . . . . 114 . 648 Ramming 41 | . . . . . . 41 . . . . . Kinetic 9153 | 101 1130 529 1942 . . . 2446 123 . . 2882 Thermal 2779 | . . . . . . . 1808 100 . . 871 Explosive 978 | . 91 . . . . . . . . . 887 Electromagnetic 1558 | . . . . . . . . 479 132 . 947 Impact 41 | . . . . . . . . . 41 . . Slashing 721 | . . . . . . . . . 73 . 648 Piercing . | . . . . . . . . . . . . Highest Corruption 18 | . . . . . . . 9 . 1 1 18 Average Corruption 9 | . . . . . . . 9 . 1 1 10 Corruption Purged . | . . . . . . . . . . . . Corruption Blocked . | . . . . . . . . . . . . Effects 103 | . . . . . . . 7 . . . 96 Message Errors 19 | . . . . . . . 2 . . . 17 Matter Fused 27 | . . . . . . . 3 . . . 24 Heat Flow Errors 12 | . . . . . . . 1 . . . 11 Energy Discharges 7 | . . . . . . . . . . . 7 Parts Fused 1 | . . . . . . . . . . . 1 Data Loss (minor) 13 | . . . . . . . . . . . 13 Data Loss (major) 1 | . . . . . . . . . . . 1 Misfires 5 | . . . . . . . 1 . . . 4 Alerts 2 | . . . . . . . . . . . 2 Misdirections 4 | . . . . . . . . . . . 4 Weapon Failures 12 | . . . . . . . . . . . 12 Overload Shots 1 | . . . . . . . . . . . 1 Overflow Damage 163 | . . . . . . . . . 2 . 161 Projectiles 7 | . . . . . . . . . . . 7 Explosions 94 | . . . . . . . . . . . 94 Melee 62 | . . . . . . . . . 2 . 60 Knockbacks 1 | . . . . . . . . . 1 . . Impact 1 | . . . . . . . . . 1 . . Kinetic . | . . . . . . . . . . . . Secondary . | . . . . . . . . . . . . Self-Inflicted Damage 234 | . . . . . . . . . . . 234 Shots 3 | . . . . . . . . . . . 3 Rammed . | . . . . . . . . . . . . Targets Rammed 2 | . . . . . . 2 . . . . . Kicked 2 | . . . . . . 2 . . . . . Crushed . | . . . . . . . . . . . . Highest Temperature 669 | . 7 44 78 . . . 669 107 48 . 441 Average Temperature 52 | . 2 25 19 . . . 79 26 14 . 60 Received Heat Transfer 2624 | . 219 100 351 . . . 603 96 90 48 1117 Effects 16 | . . . . . . . 13 . . . 3 Shutdowns 1 | . . . . . . . 1 . . . . Energy Bleed 1 | . . . . . . . 1 . . . . Interference 6 | . . . . . . . 3 . . . 3 Matter Decay 2 | . . . . . . . 2 . . . . Short Circuit 1 | . . . . . . . 1 . . . . Damage (minor) 3 | . . . . . . . 3 . . . . Damage (core) 2 | . . . . . . . 2 . . . . Siege Activations . | . . . . . . . . . . . . Robots Corrupted 4 | . . . . . . . . 2 . . 2 Combat Hostiles 4 | . . . . . . . . 2 . . 2 Parts Fried 17 | . . . . . . . . 4 . . 13 Impact Corruptions . | . . . . . . . . . . . . Robots Melted . | . . . . . . . . . . . . Combat Hostiles . | . . . . . . . . . . . . Parts Melted 10 | . . . . . . . 6 . 3 . 1 Heat Transferred 4838 | . . . . . . . 3552 259 . . 1027 Parts Sabotaged . | . . . . . . . . . . . . Parts Stolen . | . . . . . . . . . . . . Parts Stripped . | . . . . . . . . . . . . Power Chain Reactions . | . . . . . . . . . . . . Missiles Intercepted . | . . . . . . . . . . . . Alert | -11 -10 -10 -9 -9 -9 -8 -8 -7 -7 -7 -6 ------- Run | Jun Mat Min Mat Min Exi Min Mat Fac Low Low Fac Peak Influence 1281 | 25 240 71 436 132 . . 584 373 . . 1281 Initial 237 | . 16 26 3 132 . . . 237 . . 2 Average 249 | 6 79 19 190 132 . . 386 203 . . 384 Maximum Alert Level 4 | . 1 . 2 . . . 2 1 . . 4 Low Security (%) 51 | 100 90 100 52 100 . 100 5 44 . . 44 Level 1 24 | . 9 . 43 . . . 52 55 . . 7 Level 2 15 | . . . 3 . . . 42 . . . 20 Level 3 6 | . . . . . . . . . . . 23 Level 4 1 | . . . . . . . . . . . 3 Level 5 . | . . . . . . . . . . . . High Security . | . . . . . . . . . . . . Max Security . | . . . . . . . . . . . . Squads Dispatched 35 | . 4 . 2 . . . 6 2 . 1 20 Investigation 10 | . 3 . 1 . . . 1 1 . . 4 Extermination 6 | . . . . . . . . 1 . . 5 Reinforcement 9 | . 1 . 1 . . . 2 . . . 5 Assault 4 | . . . . . . . . . . 1 3 Garrison 6 | . . . . . . . 3 . . . 3 Intercept . | . . . . . . . . . . . . Searches Triggered . | . . . . . . . . . . . . Construction Impeded . | . . . . . . . . . . . . Haulers Reinforced 2 | . . . . . . . . . . . 2 Active Scanning Responses . | . . . . . . . . . . . . Cargo Convoy Interrupts . | . . . . . . . . . . . . Stealth | -11 -10 -10 -9 -9 -9 -8 -8 -7 -7 -7 -6 --------- Run | Jun Mat Min Mat Min Exi Min Mat Fac Low Low Fac Distress Signals 13 | . 3 1 4 . . . 4 . . . 1 Communications Jammed . | . . . . . . . . . . . . Distress Signals . | . . . . . . . . . . . . Times Spotted 218 | . 20 10 32 . . . 51 10 4 10 81 Peak Tracking Total 12 | . 3 2 4 . . . 8 5 3 12 9 Tactical Retreats 24 | . 2 . 3 . . . 2 2 2 . 13 Traps | -11 -10 -10 -9 -9 -9 -8 -8 -7 -7 -7 -6 ------- Run | Jun Mat Min Mat Min Exi Min Mat Fac Low Low Fac Traps Triggered 7 | . 1 . 1 . . . 1 . . . 4 Indirectly . | . . . . . . . . . . . . Trap Hack Attempts . | . . . . . . . . . . . . Triggered . | . . . . . . . . . . . . Disarmed . | . . . . . . . . . . . . Reprogrammed . | . . . . . . . . . . . . Reused . | . . . . . . . . . . . . Traps Extracted . | . . . . . . . . . . . . Installed . | . . . . . . . . . . . . Triggered . | . . . . . . . . . . . . Exploded 1 | . . . . . 1 . . . . . . Machines | -11 -10 -10 -9 -9 -9 -8 -8 -7 -7 -7 -6 ---------- Run | Jun Mat Min Mat Min Exi Min Mat Fac Low Low Fac Machines Disabled 15 | . 1 . 1 . . . 5 . . . 8 Max in Single Turn 3 | . 1 . 1 . . . 2 . . . 3 Garrison Access 1 | . . . . . . . . . . . 1 Machines Repaired . | . . . . . . . . . . . . Machines Sabotaged . | . . . . . . . . . . . . Overloaded Fab Kills . | . . . . . . . . . . . . Hacking | -11 -10 -10 -9 -9 -9 -8 -8 -7 -7 -7 -6 --------- Run | Jun Mat Min Mat Min Exi Min Mat Fac Low Low Fac Machines Accessed 44 | . 10 . 6 . 1 . 8 8 . . 11 Terminals 33 | . 8 . 5 . . . 8 5 . . 7 Fabricators 5 | . . . . . . . . 2 . . 3 Repair Stations 1 | . . . . . . . . 1 . . . Recycling Units 3 | . 2 . 1 . . . . . . . . Scanalyzers . | . . . . . . . . . . . . Garrison Access 1 | . . . . . . . . . . . 1 Total Hacks 113 | . 25 . 15 . 1 . 20 26 . . 26 Successful 51 | . 11 . 9 . 1 . 11 13 . . 6 Failed 62 | . 14 . 6 . . . 9 13 . . 20 Catastrophic 12 | . 3 . 2 . . . 1 1 . . 5 Database Lockouts . | . . . . . . . . . . . . Manual 45 | . 10 . 4 . 1 . 10 7 . . 13 Terminals 83 | . 19 . 13 . . . 20 14 . . 17 Fabricators 17 | . . . . . . . . 9 . . 8 Repair Stations 3 | . . . . . . . . 3 . . . Recycling Units 8 | . 6 . 2 . . . . . . . . Scanalyzers . | . . . . . . . . . . . . Garrison Access 1 | . . . . . . . . . . . 1 Terminal Hacks 27 | . 7 . 6 . 1 . 6 7 . . . Robot Schematic 2 | . 2 . . . . . . . . . . Robot Analysis 1 | . . . . . . . . 1 . . . Prototype ID Bank 1 | . . . . . . . 1 . . . . Branch Access Points 2 | . . . . . . . 1 1 . . . Machine Index 1 | . . . . . . . . 1 . . . Terminal Index 1 | . . . . . . . 1 . . . . Alert Level 1 | . . . . . . . . 1 . . . Unreport Threat 4 | . 3 . . . . . . 1 . . . Locate Traps 5 | . . . 2 . . . 1 2 . . . Hauler Manifests 2 | . . . 2 . . . . . . . . Registered Components 2 | . 1 . . . . . 1 . . . . Registered Prototypes 1 | . . . 1 . . . . . . . . Zone Layout 3 | . 1 . 1 . . . 1 . . . . EX-Prototype ID Bank 1 | . . . . . 1 . . . . . . Fabricator Hacks 5 | . . . . . . . . 1 . . 4 Network Status 2 | . . . . . . . . 1 . . 1 Load Schematic 1 | . . . . . . . . . . . 1 Build 2 | . . . . . . . . . . . 2 Repair Station Hacks 2 | . . . . . . . . 2 . . . Scan Component 1 | . . . . . . . . 1 . . . Repair 1 | . . . . . . . . 1 . . . Recycling Unit Hacks 2 | . 1 . 1 . . . . . . . . Retrieve Components 2 | . 1 . 1 . . . . . . . . Scanalyzer . | . . . . . . . . . . . . Garrison Access Hacks . | . . . . . . . . . . . . Unauthorized Hacks 15 | . 3 . 2 . . . 5 3 . . 2 Terminals 10 | . 1 . 1 . . . 5 2 . . 1 Track 2 | . . . . . . . 1 . . . 1 Assimilate 3 | . 1 . . . . . 2 . . . . Botnet 4 | . . . 1 . . . 1 2 . . . Operators 1 | . . . . . . . 1 . . . . Fabricators 1 | . . . . . . . . 1 . . . Liberate 1 | . . . . . . . . 1 . . . Repair Stations . | . . . . . . . . . . . . Recycling Units 3 | . 2 . 1 . . . . . . . . Tunnel 3 | . 2 . 1 . . . . . . . . Scanalyzers . | . . . . . . . . . . . . Garrison Access 1 | . . . . . . . . . . . 1 Jam 1 | . . . . . . . . . . . 1 Data Cores Recovered . | . . . . . . . . . . . . Used . | . . . . . . . . . . . . Hacking Detections 38 | . 10 . 5 . . . 7 7 . . 9 Full Trace Events 4 | . . . . . . . . 1 . . 3 Feedback Events . | . . . . . . . . . . . . Feedback Blocked . | . . . . . . . . . . . . Robot Schematics Acquired 2 | . 2 . . . . . . . . . . Robots Built 1 | . . . . . . . . . . . 1 Authchips . | . . . . . . . . . . . . Time 81 | . . . . . . . . . . . 81 Total Robot Build Rating 1 | . . . . . . . . . . . 1 Part Schematics Acquired . | . . . . . . . . . . . . Parts Built 2 | . . . . . . . . . . . 2 Authchips . | . . . . . . . . . . . . Time 64 | . . . . . . . . . . . 64 Total Part Build Rating 16 | . . . . . . . . . . . 16 Parts Repaired 1 | . . . . . . . . 1 . . . Time 38 | . . . . . . . . 38 . . . Parts Recycled . | . . . . . . . . . . . . Recycled Matter . | . . . . . . . . . . . . Retrieved Matter . | . . . . . . . . . . . . Retrieved Components 12 | . 3 . 9 . . . . . . . . Parts Scanalyzed . | . . . . . . . . . . . . Part Schematics Acquired . | . . . . . . . . . . . . Parts Damaged . | . . . . . . . . . . . . Bothacking | -11 -10 -10 -9 -9 -9 -8 -8 -7 -7 -7 -6 ------------ Run | Jun Mat Min Mat Min Exi Min Mat Fac Low Low Fac Used RIF Installer . | . . . . . . . . . . . . Robots Hacked . | . . . . . . . . . . . . Non-combat . | . . . . . . . . . . . . Combat . | . . . . . . . . . . . . Robot Hacks Applied . | . . . . . . . . . . . . Relay Couplers Released . | . . . . . . . . . . . . Fabnet Peak Effective % . | . . . . . . . . . . . . Robots Rewired 2 | . . . . . . . . . . . 2 Allies Hacked . | . . . . . . . . . . . . Hacks Repelled . | . . . . . . . . . . . . Allies | -11 -10 -10 -9 -9 -9 -8 -8 -7 -7 -7 -6 -------- Run | Jun Mat Min Mat Min Exi Min Mat Fac Low Low Fac Total Allies 8 | . . . . . . . 2 3 . . 3 Largest Group 3 | . . . . . . . 1 3 . . 2 Highest-Rated Group 70 | . . . . . . . 9 48 . . 70 Highest-Rated Ally 41 | . . . . . . . 9 16 . . 41 Total Orders . | . . . . . . . . . . . . Ally Attacks 12 | . . . . . . . . 3 . . 9 Total Damage 221 | . . . . . . . . 27 . . 194 Kills . | . . . . . . . . . . . . Allies Corrupted . | . . . . . . . . . . . . Allies Melted 2 | . . . . . . . . . . . 2 Intel | -11 -10 -10 -9 -9 -9 -8 -8 -7 -7 -7 -6 ------- Run | Jun Mat Min Mat Min Exi Min Mat Fac Low Low Fac Robot Analysis Total 1 | . . . . . . . . 1 . . . Derelict Logs Recovered 3 | . . 1 . . . . . . 2 . . Drone Launches . | . . . . . . . . . . . . Drone Recoveries . | . . . . . . . . . . . . Exploration | -11 -10 -10 -9 -9 -9 -8 -8 -7 -7 -7 -6 ------------- Run | Jun Mat Min Mat Min Exi Min Mat Fac Low Low Fac Turns Passed 10275 | 113 1293 1011 1227 26 287 193 1902 906 433 45 2839 Spaces Moved 6340 | 48 657 532 563 22 232 158 1013 908 530 58 1619 Core 2 | 2 . . . . . . . . . . . Treads 2089 | 46 657 532 427 . . . 57 63 . . 307 Legs 2249 | . . . 136 22 232 158 956 . . . 745 Wheels . | . . . . . . . . . . . . Hover 2000 | . . . . . . . . 845 530 58 567 Flight . | . . . . . . . . . . . . Fastest Speed 50 | 50 160 160 120 120 120 120 120 74 74 74 71 Average Speed 123 | 155 160 160 150 120 120 120 136 80 74 74 122 Slowest Speed 250 | 160 160 160 190 120 120 120 200 160 74 74 250 Overloaded Moves . | . . . . . . . . . . . . Propulsion Burnouts . | . . . . . . . . . . . . Robots Hopped . | . . . . . . . . . . . . Cave-ins Triggered 1 | . . . . . . . 1 . . . . Exploration Rate (%) 47 | 4 91 99 53 8 60 44 68 23 76 8 40 Regions Visited 11 Branch Regions 6 Pre-discovered Areas 4 | . 2 1 1 . . . . . . . . Known Exits Taken 1 | . . . . . . . . 1 . . . Unknown Exits Taken 10 | 1 1 1 1 1 1 1 1 . 1 1 . Scrap Searched 6 | . . 1 . . . . . . 5 . . Spaces Dug 27 | . . . 1 . . . 3 . . 1 22 Terrain Destroyed 120 | . 4 . 1 . . . 19 . . 1 95 Melee 10 | . . . 1 . . . 3 . . 1 5 Projectile 27 | . . . . . . . 16 . . . 11 AOE 80 | . 4 . . . . . . . . . 76 Terrain Rammed . | . . . . . . . . . . . . Walls Destroyed . | . . . . . . . . . . . . Machines Disabled . | . . . . . . . . . . . . Actions | -11 -10 -10 -9 -9 -9 -8 -8 -7 -7 -7 -6 --------- Run | Jun Mat Min Mat Min Exi Min Mat Fac Low Low Fac Total 7666 | 68 762 623 762 21 242 161 1282 1043 547 58 2097 Wait 254 | . 7 39 35 . . . 51 42 1 . 79 Move 6329 | 47 656 531 562 21 231 157 1012 907 529 57 1619 Hop . | . . . . . . . . . . . . Pick Up 93 | 6 10 6 12 . 3 . 12 10 1 . 33 Fast Attach 87 | 6 2 . 13 . 2 1 21 6 . . 36 Attach 36 | 1 1 . 3 . . . 6 5 1 . 19 Detach 4 | . . . . . . . 1 2 . . 1 Swap 74 | . 4 4 14 . . . 4 7 2 . 39 Drop 131 | . 10 7 28 . 6 1 21 15 . . 43 Fire 601 | 8 72 36 94 . . . 151 33 9 . 198 Melee 29 | . . . 1 . . . 3 . 4 1 20 Ram . | . . . . . . . . . . . . Kick 2 | . . . . . . 2 . . . . . Crush . | . . . . . . . . . . . . Escape Stasis . | . . . . . . . . . . . . Rewire 26 | . . . . . . . . 16 . . 10 Trap . | . . . . . . . . . . . . Miscellaneous . | . . . . . . . . . . . . Route ------- -11/Junkyard -10/Materials (discovered 4 exits: *Mat x3 / [*Min]) -10/Mines (discovered 2 exits: *Mat x2) -9/Materials (discovered 3 exits: [*Min x2] / [*Sto]) -9/Mines -9/Exiles -8/Mines -8/Materials (discovered 3 exits: *Fac x3) -7/Factory (discovered 4 exits: *Fac x2 / *Low x2) -7/Lower Caves -7/Lower Caves -6/Factory (discovered 1 exit: [*Fac]) History --------- Turn | Location | Event 12 | -11/Junkyard | Discovered new exit (range 15) 114 | -11/Junkyard | Entered Materials 232 | -10/Materials | Discovered new exit (range 10) 302 | -10/Materials | Build established: Mutant 680 | -10/Materials | Discovered new exit (range 6) 1034 | -10/Materials | Discovered new exit (range 8) 1386 | -10/Materials | Discovered new exit (range 12) 1407 | -10/Materials | Entered Mines 1536 | -10/Mines | Assembled infested the area 1832 | -10/Mines | Discovered new exit (range 14) 2072 | -10/Mines | Received a Rocket Launcher from a helpful Derelict 2152 | -10/Mines | A weapon hastily lodged in a ceiling crevice suddenly fell to the ground 2169 | -10/Mines | Discovered new exit (range 10) 2418 | -10/Mines | Entered Materials 2418 | -9/Materials | Evolved 2 slots: Propulsion x1, Utility x1 2418 | -9/Materials | Discovered new exit (range 8) 2600 | -9/Materials | Discovered new exit (range 16) 2981 | -9/Materials | Build established: Scavenger-Mutant 3052 | -9/Materials | Discovered new exit (range 12) 3645 | -9/Materials | Entered Mines 3666 | -9/Mines | Deemed a non-threat by the Exiles lab entrance 3666 | -9/Mines | Discovered new exit (range 5) 3671 | -9/Mines | Entered Exiles 3700 | -9/Exiles | Met 8R-AWN 3722 | -9/Exiles | Met EX-HEX 3723 | -9/Exiles | Build established: Mutant 3753 | -9/Exiles | Met EX-BIN 3770 | -9/Exiles | Aligned with FarCom system 3771 | -9/Exiles | Given EX-Vault access code 3799 | -9/Exiles | Opened EX-Vault 3808 | -9/Exiles | Found Modified TNC 3812 | -9/Exiles | Found Cloak of Protection 3818 | -9/Exiles | Found AWS/Thermal 3857 | -9/Exiles | Exiles lab attacked by MAIN.C 3944 | -9/Exiles | Discovered new exit (range 10) 3958 | -9/Exiles | Stole three prototypes: Modified TNC, AWS/Thermal, Cloak of Protection 3958 | -9/Exiles | Entered Mines 4143 | -8/Mines | Discovered new exit (range 5) 4151 | -8/Mines | Entered Materials 4151 | -8/Materials | Evolved 2 slots: Utility x2 4347 | -8/Materials | Discovered new exit (range 16) 4703 | -8/Materials | Discovered new exit (range 9) 5370 | -8/Materials | Discovered new exit (range 5) 5409 | -8/Materials | Lost 3 parts (2n1u) 5450 | -8/Materials | Lost 3 parts (1p1n1u) 5611 | -8/Materials | Garrison activated, responded to threat 5743 | -8/Materials | Build established: Scavenger-Mutant 5886 | -8/Materials | Crushed by falling debris 5886 | -8/Materials | Core integrity fell below 50% 5917 | -8/Materials | Lost 3 parts (1n1u1w) 5943 | -8/Materials | Core integrity fell below 20% 6053 | -8/Materials | Entered Factory 6053 | -7/Factory | Evolved 2 slots: Utility x2 6055 | -7/Factory | FarCom data flow suspended 6256 | -7/Factory | Repaired Imp. Light Armor Plating 6491 | -7/Factory | Discovered new exit (range 13) 6536 | -7/Factory | Discovered new exit (range 16) 6594 | -7/Factory | Identified exit to Lower Caves 6629 | -7/Factory | Discovered new exit (range 4) 6959 | -7/Factory | Entered Lower Caves 7073 | -7/Lower Caves | Encountered a Warlord checkpoint 7198 | -7/Lower Caves | Discovered new exit (range 14) 7240 | -7/Lower Caves | Learned Factory terminal intel 7268 | -7/Lower Caves | Learned 8 Factory zone layouts 7392 | -7/Lower Caves | Entered another Lower Caves area 7426 | -7/Lower Caves | Discovered new exit (range 14) 7431 | -7/Lower Caves | Attracted the attention of an 0b10 outpost 7433 | -7/Lower Caves | Attracted the attention of an 0b10 checkpoint 7437 | -7/Lower Caves | Entered Factory 7437 | -6/Factory | Evolved 2 slots: Propulsion x1, Utility x1 7439 | -6/Factory | Loaded intel: 26 terminal locations 7706 | -6/Factory | Fabricated O-16 Technician? 7781 | -6/Factory | Lost 6 parts (1p2n2u1w) 8314 | -6/Factory | Build established: Scavenger-Assassin 8541 | -6/Factory | Fabricated Mic. Antimatter Reactor? 8616 | -6/Factory | Build established: Scavenger-Skirmisher 8624 | -6/Factory | System corruption reached 10% 8836 | -6/Factory | Destroyed 7 combat bots 9187 | -6/Factory | First assault squad dispatched 9219 | -6/Factory | Found Prototype Processor 9219 | -6/Factory | Identified Exp. Targeting Computer 9246 | -6/Factory | Discovered new exit (range 19) 9724 | -6/Factory | Core integrity fell below 50% 10004 | -6/Factory | Garrison activated, responded to threat 10071 | -6/Factory | Build established: Scavenger-Mutant 10138 | -6/Factory | Garrison activated, responded to threat 10190 | -6/Factory | Core integrity fell below 20% 10236 | -6/Factory | Destroyed 8 combat bots 10236 | -6/Factory | Lost 7 parts (3n1u3w) 10276 | -6/Factory | Destroyed by G-50 Soldier with Heavy Laser Last Messages --------------- 10263_ E-15 Imp unfolds itself. 10263_ U-05 Engineer lays Concrete. 10265_ K-01 Serf collects debris. 10266_ U-05 Engineer lays Concrete. 10267_ R-10 Processor collects Com. Wheel. 10267_ E-15 Imp destroyed. 10268_ U-05 Engineer lays Concrete. 10269_ K-01 Serf collects debris. 10269_ U-05 Engineer lays Concrete. 10270_ Critical hit (Burn: +50). 10270_ U-05 Engineer lays Concrete. 10271_ K-01 Serf collects debris. 10272_ U-05 Engineer lays Concrete. 10273_ W-25 Informer destroyed. 10273_ Flexi-carbon Leg destroyed. 10274_ U-05 Engineer lays Concrete. 10275_ K-01 Serf collects debris. 10275_ L-41 Fighter destroyed. 10275_ K-01 Serf destroyed. 10276_ U-05 Engineer lays Concrete. Map ----- +----------------------------------------------------+ | ?????????????????????????????????????????????????? | | ???????????????????????????????????????? ????????? | | ??????????????????????? ???????????????? "" ????? | | ?????????????????????# ???????????? G" ? | | ?????????????????????# ???????""""" ? "" | | ?????????????????????# ?????? """"" | | ?????????????????????# ?????? | | ?????????????????????# ?????? ] ? | | ?????????????????????# ?????? ????? | | ?????????????????????# ??????# ###????????? | | ?????????????????????# ??????# ##?????????? | | ?????????????????????# ####### ;??????????? | | ???????????????#####?# # # # #??????????? | | ??????????????? # ;";;;;; #??????????? | | ??????????????? # ; ; Y #??????????? | | ????????????????""" # % ; u ; ############ | | ????????????????"" ; ; # | | ???????????# ???"" ! g # "" "" | | ???????????# ""???" ! # "" "" | | ????????????? ??? [ g# # """ """ | | ??????????????? ??? * [R # """ """ | | ???????????????## ?# % k # """ """ | | ???????????????# # == =; # = | | ??????????###### % %%! ;;### " % | | ???????T =l* ;##?# # | | ????????????#### @ ! [;#??# # | | ???????????????# # # # ; ###??# # | | ???????????????### ##??### #####????# # | | ?????????????????#?????????#????????# ######/####+ | | ????????????????????????####????????# ####?# #??# | | ???????????????????????##T ########## # #?# #??# | | ??????????????????????? # ### #??# | | ??????????????????????? #??# | | ??????????????????????? #??# | | ??????????????????????? " #??# | | ??????????????????????? "" "" T #??# | | ???????????????????????##### "" "" " #### | | ???????????????????????##### """ """ | | ??????????????????????? # """ """ | | ??????????????????????? # """ """ | | ??????????????????????? + """ | | ?????????????????????????????????????????? ???? | | ?????????????????????????????????????????? ???? | | ?????????????????????????????????????????? ???? | | ?????????????????????????????????????????? ???? | | ?????????????????????????????????????????? ???? | | ?????????????????????????????????????????? ???? | | ?????????????????????????????????????????????????? | | ?????????????????????????????????????????????????? | | ?????????????????????????????????????????????????? | +----------------------------------------------------+ Best States ------------- Heat Dissipation 56 Energy Generation 19 Energy Capacity 280 Matter Stores 300 Matter Capacity 300 Sight Range 20 Robot Scan Range 16 Terrain Scan Range 20 Terrain Scan Density 310 Cloak Strength 5 Armor Coverage 675 Propulsion Shielding 33 Weapon Cycling 15 Phase Shifting 5 Evasion (%) 60 Targeting Accuracy 6 Melee Accuracy 6 Target Analysis 5 Recoil Reduction 3 Offensive Hacking 20 Item Schematics ----------------- None Robot Schematics ------------------ M-13 Machinist | -10/Materials | Hacked O-16 Technician | -10/Materials | Hacked Fabricated ------------ O-16 Technician | x1 | -6/Factory Mic. Antimatter Reactor | x2 | -6/Factory | Preloaded Alien Tech Used ----------------- None Achievements -------------- None Challenges ------------ None Game ------ Seed ThermalClaymoresPod Manual? 0 Play Time 01:09:32 Cumulative 649.1 hours Start 2023.03.26 @ 18:50:18 End 2023.03.26 @ 19:55:05 Sessions 1 Manual Loads 0 Difficulty Rogue Special Mode None Game No. 402 Rogue 402 Adventurer 0 Explorer 0 Win Type - Total 9 Types 6/0/1/1/1/0/0/0/0 Lore% 87 Gallery% 90 Achievement% 74 Wizard Run 0 Options --------- ASCII 0 Keyboard 0 Movement Mouse Keybinds 1 Fullscreen 2 Font 24/Smallcaps Map View 68x50 Tactical HUD 1 Map Filters NONE Filters NONE Steam 1 RUN: eee5446b-4698-4597-9d12-ede9c81d170d